lending/lending_fUSD_20250323
["ID","MTS","AMOUNT","RATE_DAILY","PERIOD"]
[356577444,1742712639946,-297.0,0.00013014,2]
[356577445,1742712639956,-150.0,0.00013149,2]
[356577446,1742712639965,-150.0,0.00013193,2]
[356577447,1742712639975,-150.349,0.00013193,2]
[356577448,1742712639984,-2040.46,0.00013193,2]
[356577449,1742712639993,-1283.436,0.00013193,2]
[356577450,1742712640003,-644.278,0.00013193,2]
[356577451,1742712640013,-559.277,0.00013193,2]
[356577452,1742712640022,-789.0,0.00013193,2]
[356577453,1742712640031,-1273.0,0.00013193,2]
[356577454,1742712640041,-1433.714,0.00013193,2]
[356577455,1742712640050,-543.761,0.00013193,2]
[356577456,1742712640059,-4092.369,0.00013193,2]
[356577458,1742712640068,-907.0,0.00013193,2]
[356577460,1742712640077,-1014.0,0.00013193,2]
[356577462,1742712640086,-3986.124,0.00013193,2]
[356577464,1742712640095,-226.778,0.00013193,2]
[356577466,1742712640104,-813.44274671,0.00013381,2]
[356577468,1742712640113,-1000.0,0.00013443,2]
[356577470,1742712640122,-237.07728921,0.0001366,2]
[356577471,1742712640132,-6163.68,0.00013699,2]
[356577474,1742712640141,-243.82,0.00013699,2]
[356577475,1742712640150,-150.99,0.00013699,2]
[356577477,1742712640159,-2751.0,0.00013734,2]
[356577479,1742712640169,-186.03,0.00013814,2]
[356577481,1742712640178,-180.56,0.00013825,2]
[356577483,1742712640187,-327.19,0.00013846,2]
[356577485,1742712640196,-2093.01,0.00013875,2]
[356577487,1742712640205,-500.0,0.0001388,2]
[356577489,1742712640214,-150.0,0.0001388,2]
[356577491,1742712640223,-1831.99,0.00013887,2]
[356577493,1742712640232,-150.0,0.00013899,2]
[356577495,1742712640241,-807.68860286,0.00013907,2]
[356577497,1742712640250,-815.24,0.00014076,2]
[356577499,1742712640259,-815.24,0.00014106,2]
[356577501,1742712640268,-250.0,0.00014116,2]
[356577503,1742712640277,-194.82,0.00014117,2]
[356577505,1742712640286,-1061.5,0.00014123,2]
[356577507,1742712640295,-815.24,0.00014135,2]
[356577509,1742712640304,-153.64,0.00014139,2]
[356577511,1742712640313,-200.0,0.00014165,2]
[356577513,1742712640323,-815.24,0.00014165,2]
[356577515,1742712640332,-815.24,0.00014195,2]
[356577516,1742712640341,-200.0,0.00014211,2]
[356577518,1742712640350,-815.24,0.00014224,2]
[356577520,1742712640359,-815.24,0.00014254,2]
[356577522,1742712640368,-815.24,0.00014284,2]
[356577524,1742712640378,-815.24,0.00014313,2]
[356577526,1742712640387,-1065.17,0.00014331,2]
[356577527,1742712640396,-815.24,0.00014343,2]
[356577528,1742712640406,-23900.0,0.00014356,2]
[356577529,1742712640415,-815.24,0.00014373,2]
[356577530,1742712640424,-227.16,0.00014392,2]
[356577531,1742712640433,-815.24,0.00014402,2]
[356577532,1742712640443,-159.8,0.00014429,2]
[356577533,1742712640452,-815.24,0.00014432,2]
[356577534,1742712640462,-749.29,0.00014461,2]
[356577535,1742712640471,-815.24,0.00014461,2]
[356577536,1742712640480,-153.89,0.00014489,2]
[356577537,1742712640490,-815.24,0.00014491,2]
[356577538,1742712640500,-815.24,0.00014521,2]
[356577539,1742712640509,-815.24,0.0001455,2]
[356577540,1742712640519,-815.24,0.0001458,2]
[356577541,1742712640528,-815.24,0.0001461,2]
[356577542,1742712640538,-815.24,0.00014639,2]
[356577543,1742712640547,-813.44274671,0.00014809,2]
[356577544,1742712640557,-1000.0,0.00014937,2]
[356577545,1742712640566,-500.0,0.00015001,2]
[356577546,1742712640575,-500.0,0.00015001,2]
[356577547,1742712640584,-500.0,0.00015001,2]
[356577548,1742712640593,-500.0,0.00015001,2]
[356577549,1742712640602,-500.0,0.00015001,2]
[356577550,1742712640611,-500.0,0.00015001,2]
[356577551,1742712640624,-500.0,0.00015001,2]
[356577552,1742712640633,-500.0,0.00015001,2]
[356577553,1742712640642,-528.0,0.00015001,2]
[356577554,1742712640652,-480.17886749,0.00015094,2]
[356577555,1742712640661,-300.0,0.00015328,2]
[356577556,1742712640671,-237.07728921,0.00015364,2]
[356577557,1742712640680,-418.46611323,0.00015795,2]
[356577558,1742712640689,-159.8,0.00015872,2]
[356577559,1742712640698,-150.0,0.00016193,2]
[356577560,1742712640707,-2036.0,0.00016193,2]
[356577561,1742712640716,-1281.0,0.00016193,2]
[356577562,1742712640725,-642.0,0.00016193,2]
[356577563,1742712640735,-787.0,0.00016193,2]
[356577564,1742712640744,-1271.0,0.00016193,2]
[356577565,1742712640753,-1430.0,0.00016193,2]
[356577566,1742712640762,-542.0,0.00016193,2]
[356577567,1742712640771,-4085.0,0.00016193,2]
[356577568,1742712640781,-907.0,0.00016193,2]
[356577569,1742712640790,-1014.0,0.00016193,2]
[356577570,1742712640800,-3941.0,0.00016193,2]
[356577571,1742712640810,-151.0,0.00016193,2]
[356577572,1742712640819,-813.44274671,0.00016236,2]
[356577573,1742712640828,-1000.0,0.00016431,2]
[356577574,1742712640838,-1065.17,0.00016595,2]
[356577575,1742712640847,-300.0,0.00016698,2]
[356577576,1742712640857,-237.07728921,0.00017069,2]
[356577577,1742712640866,-159.8,0.00017315,2]
[356577578,1742712640877,-813.44274671,0.00017663,2]
[356577579,1742712640886,-1000.0,0.00017924,2]
[356577580,1742712640895,-200.0,0.00018082,2]
[356577581,1742712640904,-480.17886749,0.00018233,2]
[356577582,1742712640913,-153.94,0.000186,2]
[356577583,1742712640922,-159.8,0.00018758,2]
[356577584,1742712640931,-237.07728921,0.00018774,2]
[356577585,1742712640942,-261.97610836,0.00018799,2]
[356577586,1742712640951,-1065.17,0.00018859,2]
[356577587,1742712640960,-830.51344952,0.000189,2]
[356577588,1742712640970,-1796.35080483,0.00019,2]
[356577589,1742712640979,-30812.79540247,0.00019,2]
[356577590,1742712640988,-813.44274671,0.00019091,2]
[356577591,1742712640997,-892.438,0.00019193,2]
[356577592,1742712641006,-870.994,0.00019193,2]
[356577593,1742712641015,-3941.0,0.00019193,2]
[356577594,1742712641023,-151.0,0.00019193,2]
[356577595,1742712641032,-371.0,0.000196,2]
[356577596,1742712641041,-752.0,0.000196,2]
[356577597,1742712641050,-467.0,0.000196,2]
[356577598,1742712641059,-1061.5,0.00019772,2]
[356577599,1742712641068,-61415.1357045,0.0001993,2]
[356577600,1742712641077,-150.0,0.0001993,2]
[356577601,1742712641087,-1566.61501462,0.0001993,2]
[356577602,1742712641095,-514.0,0.0001997,2]
[356577603,1742712641105,-150.0,0.00019973,2]
[356577604,1742712641114,-13768.855179,0.00019986,2]
[356577605,1742712641124,-2095.1775616,0.00019986,2]
[356577606,1742712641136,-32714.78707932,0.00019999,2]
[356577607,1742712641146,-299.50945827,0.0002,2]
[356577608,1742712641155,-10000.0,0.0002,2]
[356577609,1742712641164,-1474.43104085,0.0002,2]
[356577610,1742712641175,-4279.13719739,0.0002,2]
[356577611,1742712641184,-50000.0,0.0002,2]
[356577612,1742712641193,-398819.86525212,0.0002,4]
[356577613,1742712641202,-7500.0,0.0002,2]
[356577614,1742712641214,-3848.34626928,0.0002,2]
[356577615,1742712641226,-7353.82863183,0.0002,2]
[356577616,1742712641304,-290.79013701,0.0002,2]
[356577617,1742712641317,-4172.25,0.0002,2]
[356577618,1742712641331,-1032.75,0.0002,2]
[356577619,1742712641343,-459.09999986,0.0002,2]
[356577620,1742712641354,-8434.6430823,0.0002,2]
[356577621,1742712641366,-2418.86321156,0.0002,2]
[356577633,1742712642605,-619.70755525,0.00013193,2]
[356577634,1742712643735,-495.29244475,0.00013193,2]
[356577635,1742712643744,-1115.0,0.00016193,2]
[356577636,1742712643753,-1115.0,0.00019193,2]
[356577637,1742712643763,-68.80759525,0.0002,2]
[356577638,1742712643774,-7777.99999997,0.0002,2]
[356577639,1742712643785,-13901.78146973,0.0002,2]
[356577640,1742712643795,-8300.0,0.0002,4]
[356577641,1742712643918,-15240.52409496,0.0002,4]
[356577642,1742712645494,-329.35058128,0.0002,4]
[356577643,1742712645550,-842.92322446,0.0002,4]
[356577644,1742712645590,-20360.39586186,0.0002,4]
[356577645,1742712726228,-200.0,0.00013193,2]
[356577646,1742712726250,-150.0,0.00013197,2]
[356577647,1742712726271,-150.0,0.000132,2]
[356577648,1742712771660,1000.0,0.000119,2]
[356577649,1742712857683,150.0,0.000132,2]
[356577650,1742713043221,150.0,0.000132,2]
[356577651,1742713227852,150.0,0.000133,2]
[356577652,1742713414017,150.0,0.000133,2]
[356577653,1742713597637,172.91,0.000133,2]
[356577667,1742713831601,-150.0,0.00013948,2]
[356577668,1742713831610,-669.80611266,0.00013983,2]
[356577669,1742713831632,-510.43355658,0.00013983,2]
[356577670,1742713831644,-865.0,0.00013983,2]
[356577671,1742713831670,-861.56946886,0.00013983,2]
[356577672,1742713831703,-211.47819687,0.00013983,2]
[356577673,1742713831713,-300.0,0.00013992,2]
[356577674,1742713831722,-6429.1729888,0.00013993,2]
[356577675,1742713831733,-1077.94,0.00013993,2]
[356577696,1742713837523,-339.89198348,0.00013993,2]
[356577697,1742713837636,-1177.89409944,0.00013993,2]
[356577698,1742713837748,-4595.3446658,0.00013993,2]
[356577719,1742713839706,-806.91847004,0.00013993,2]
[356577720,1742713839752,-16891.59846762,0.00013993,2]
[356577721,1742713840078,-891.72127326,0.00013993,2]
[356577722,1742713840141,-1150.81475192,0.00013993,2]
[356577723,1742713840152,-271.92336503,0.00013993,2]
[356577724,1742713840163,-4274.08151001,0.00013993,2]
[356577725,1742713840173,-151.0,0.00014123,2]
[356577726,1742713840183,-3448.92166532,0.00014123,2]
[356577727,1742713840195,-492.07833468,0.00014123,2]
[356577728,1742713840204,-150.0,0.00015304,2]
[356577729,1742713840213,-420.0,0.00015329,2]
[356577730,1742713840223,-150.0,0.00015392,2]
[356577731,1742713840232,-180.0,0.00016794,2]
[356577732,1742713840242,-295.05158812,0.00016992,2]
[356577733,1742713840254,-94.94841188,0.00016992,2]
[356577734,1742713840263,-417.66,0.00016992,2]
[356577735,1742713840272,-151.0,0.00017123,2]
[356577736,1742713840282,-219.90947887,0.00017123,2]
[356577744,1742713842664,-673.82,0.00014192,2]
[356577745,1742713843795,-441.18,0.00014192,2]
[356577746,1742713843805,-3721.09052113,0.00017123,2]
[356577747,1742713843815,-495.934,0.00017192,2]
[356577748,1742713843824,-798.87,0.00017569,2]
[356577749,1742713843836,-587.0,0.000179,2]
[356577750,1742713843845,-150.99,0.000179,2]
[356577751,1742713843855,-802.82966785,0.000186,2]
[356577752,1742713843865,-200.0,0.0001909,2]
[356577753,1742713843875,-301.02,0.00019251,2]
[356577754,1742713843885,-577.56479704,0.00019729,2]
[356577755,1742713843928,-1788.94322221,0.00019729,2]
[356577756,1742713843939,-2235.49392963,0.00019729,2]
[356577757,1742713843950,-2174.13,0.00019729,2]
[356577758,1742713843962,-1090.37696688,0.00019729,2]
[356577759,1742713845735,-1055.18919703,0.00013922,2]
[356577772,1742713898129,2037.86434776,0.00013084,2]
[356577774,1742714708321,1269.22565224,0.00012,2]
[356577775,1742714719739,2895.39244555,9e-05,2]
[356577776,1742714735782,1161.34121138,8e-05,2]
[356577778,1742714753505,29292.38430884,6.94e-05,2]
[356577779,1742714761096,1054.64528336,8e-05,2]
[356577780,1742714832827,300.0,0.000114,4]
[356577781,1742714834998,600.0,0.000115,4]
[356577782,1742714837069,900.0,0.000116,4]
[356577788,1742714839198,1200.0,0.000117,4]
[356577794,1742714841294,1500.0,0.000118,4]
[356577795,1742714843439,300.0,0.000119,4]
[356577838,1742714948066,-5756.62619664,0.0001,2]
[356577843,1742714948163,-5756.62619664,0.0001,2]
[356577849,1742714948269,-541.67505442,0.0001,2]
[356577865,1742714973167,-2374.728016,9.95e-05,2]
[356577866,1742714973216,-3622.99672959,9.99e-05,2]
[356577867,1742714973275,-4508.49449451,9.99e-05,2]
[356577877,1742714998019,-6207.84913039,9.99e-05,2]
[356577878,1742714998072,-3022.43952051,9.99e-05,2]
[356577882,1742715031730,-3479.96276234,9.99e-05,2]
[356577887,1742715031843,-400.41195319,9.99e-05,2]
[356577888,1742715031960,-391.2107439,9.99e-05,2]
[356577889,1742715031973,-2737.33492461,9.99e-05,2]
[356577890,1742715031985,-1587.35583697,9.99e-05,2]
[356577891,1742715032000,-13337.27399468,9.99e-05,2]
[356577892,1742715032011,-150.0,9.995e-05,2]
[356577893,1742715032022,-150.0,9.999e-05,2]
[356577894,1742715032032,-82097.55441838,0.0001,2]
[356577895,1742715032051,-1095.15854495,0.0001,2]
[356577896,1742715032154,-3002.04649014,0.0001,2]
[356577907,1742715037714,-2545.50539138,0.0001,2]
[356577908,1742715037726,-3967.82184322,0.0001,2]
[356577909,1742715037840,-24457.30521196,0.0001,2]
[356577910,1742715037872,-1328.96696222,0.0001,2]
[356577911,1742715037903,-581.96065733,0.0001,2]
[356577925,1742715039946,-4891.56684156,0.0001,2]
[356577926,1742715040063,-2138316.11766063,0.0001,2]
[356577927,1742715040072,-200.16644563,0.0001,2]
[356577928,1742715040081,-150.0,0.00010989,2]
[356577929,1742715040091,-150.0,0.00011108,2]
[356577930,1742715040100,-426.30534892,0.00011739,2]
[356577931,1742715040109,-169.34092089,0.00011839,2]
[356577932,1742715040121,-160.57748815,0.00011973,2]
[356577933,1742715040130,-411.35245748,0.00011973,2]
[356577934,1742715040140,-160.08132431,0.00011973,2]
[356577935,1742715040149,-552.76381259,0.00011973,2]
[356577936,1742715040158,-1883124.30669783,0.00012,2]
[356577937,1742715040280,-3868.2,0.00012,2]
[356577943,1742715042896,-438.02540688,0.00012,2]
[356577952,1742715046273,-1068.40519484,0.00012,2]
[356577979,1742716231956,-438.25924277,0.0001176,2]
[356577980,1742716231967,-255.97559429,0.0001176,2]
[356577981,1742716232115,-311.10816294,0.0001176,2]
[356577982,1742716232124,-180.638,0.0001176,2]
[356577983,1742716232134,-150.0,0.00011795,2]
[356577984,1742716232143,-59.36883706,0.00011855,2]
[356577985,1742716232156,-90.63116294,0.00011855,2]
[356577986,1742716232165,-1244.1153,0.000119,2]
[356577987,1742716232175,-289.3259,0.000119,2]
[356577988,1742716232185,-154.82085398,0.00011903,2]
[356577989,1742716232194,-671.95178308,0.00011903,2]
[356577990,1742716232205,-952.32999,0.00011903,2]
[356577991,1742716232217,-627.58285509,0.00011903,2]
[356577992,1742716232232,-1300.0,0.00011903,2]
[356577993,1742716232244,-366.77,0.00011903,2]
[356577994,1742716232255,-399.74783102,0.00011903,2]
[356577995,1742716232264,-176.45000888,0.00011932,2]
[356577996,1742716232275,-50.39512366,0.00011973,2]
[356577997,1742716232308,-449.60487634,0.00011973,2]
[356577998,1742716232318,-165.77701921,0.00011973,2]
[356577999,1742716232330,-868.08361754,0.00011999,2]
[356578000,1742716232340,-43.98501042,0.00011999,2]
[356578001,1742716232352,-1348.10131452,0.00011999,2]
[356578002,1742716232365,-426.36644233,0.00011999,2]
[356578003,1742716232377,-399.07240759,0.00011999,2]
[356578004,1742716237874,-1638.65078962,0.00011999,2]
[356578005,1742716237886,-677.40585928,0.00011999,2]
[356578006,1742716237897,-1614.83914072,0.00012,2]
[356578007,1742716237918,-959.71480221,0.00012,2]
[356578008,1742716237930,-902.40016871,0.00012,2]
[356578009,1742716237941,-8355.461751,0.00012,2]
[356578010,1742716237952,-3305.49971184,0.00012,2]
[356578011,1742716238055,-630.69068571,0.00012,2]
[356578012,1742716238067,-1690.76584783,0.00012,2]
[356578013,1742716238080,-504.94483614,0.00012,2]
[356578014,1742716238190,-9728.13633588,0.00012,2]
[356578015,1742716238200,-444.65525381,0.00012,2]
[356578016,1742716238211,-500.0,0.00012,2]
[356578017,1742716238234,-36760.38915036,0.00012,2]
[356578038,1742716240256,-35990.29172697,0.00012,2]
[356578039,1742716240412,-2790.0,0.00012,2]
[356578040,1742716240423,-974.55526154,0.00012,2]
[356578041,1742716240435,-1266.575,0.00012,2]
[356578042,1742716240567,-2066.71911004,0.00012,2]
[356578193,1742716245897,-10202.53489523,0.00012,2]
[356578194,1742716245952,-840.7,0.00012,2]
[356578197,1742716613951,364.62,0.00031722,30]
[356578230,1742717432059,-373.950001,0.00011726,2]
[356578231,1742717432069,-150.0,0.00011785,2]
[356578232,1742717432078,-2236.35764997,0.000118,2]
[356578233,1742717432087,-5457.82404506,0.000118,2]
[356578234,1742717432098,-816.3724233,0.000118,2]
[356578235,1742717432164,-804.79,0.000118,2]
[356578236,1742717432219,-3783.0691778,0.000118,2]
[356578237,1742717432325,-292.06520151,0.000118,2]
[356578238,1742717432336,-1732.25725233,0.000118,2]
[356578239,1742717432345,-150.0,0.00011843,2]
[356578240,1742717432355,-274.853,0.000119,2]
[356578241,1742717432364,-169.54260921,0.000119,2]
[356578242,1742717432434,-87085.18249079,0.000119,2]
[356578243,1742717432444,-187.12579172,0.00011903,2]
[356578244,1742717432453,-500.55250695,0.00011973,2]
[356578245,1742717432462,-278870.0143389,0.00012,2]
[356578263,1742717438024,-14536.5381,0.00012,2]
[356578264,1742717438078,-715.96939773,0.00012,2]
[356578265,1742717438185,-760.00749526,0.00012,2]
[356578279,1742717440323,-6718.56,0.00012,2]
[356578280,1742717440635,-262.64410001,0.00012,2]
[356578281,1742717440645,-1435.7055609,0.00012,2]
[356578292,1742717444082,-4553.10532032,0.00012,2]
[356578293,1742717444098,-279.09938607,0.00012,2]
[356578295,1742717446242,-1687.53936,0.00012,2]
[356578296,1742717446296,-504.93653698,0.00012,2]
[356578297,1742717446402,-814.9269908,0.00012,2]
[356578298,1742717446413,-2392.23183232,0.00012,2]
[356578304,1742718055862,-150.0,0.00011899,2]
[356578305,1742718055888,-254.1871,0.000119,2]
[356578306,1742718055914,-6454.8129,0.000119,2]
[356578313,1742718472575,3274.34435649,0.0001,2]
[356578314,1742718472596,719.23108663,0.0001,2]
[356578315,1742718476098,2555.11326986,0.0001,2]
[356578316,1742718476121,3274.34435649,0.0001,2]
[356578317,1742718476144,3274.34435649,0.0001,2]
[356578318,1742718476167,3274.34435649,0.0001,2]
[356578319,1742718476190,3274.34435649,0.0001,2]
[356578320,1742718476213,3274.34435649,0.0001,2]
[356578321,1742718476241,3274.34435649,0.0001,2]
[356578322,1742718476265,3274.34435649,0.0001,2]
[356578323,1742718476288,3274.34435649,0.0001,2]
[356578336,1742718575331,-3421.072945,9.95e-05,2]
[356578339,1742718575362,-2253.99391054,0.0001,2]
[356578341,1742718575405,-4338.4273332,0.0001,2]
[356578355,1742718632403,-446.63938101,0.0001,2]
[356578356,1742718632564,-887.84992617,0.0001,2]
[356578357,1742718632576,-250.22877249,0.0001,2]
[356578358,1742718632587,-368.49929451,0.0001,2]
[356578359,1742718632598,-897.56422115,0.0001,2]
[356578360,1742718632611,-50433.29896136,0.0001,2]
[356578361,1742718632623,-426870.75002738,0.0001,2]
[356578382,1742718638161,-478.05005155,0.0001,2]
[356578383,1742718638221,-608.80008703,0.0001,2]
[356578384,1742718638233,-1571.50376747,0.0001,2]
[356578385,1742718638245,-1076.98151416,0.0001,2]
[356578386,1742718638273,-6107.54563059,0.0001,2]
[356578387,1742718638285,-886.16936274,0.0001,2]
[356578388,1742718638296,-24826.2859,0.0001,2]
[356578389,1742718638312,-29641.12168316,0.0001,2]
[356578414,1742718640328,-10906.81012829,0.0001,2]
[356578415,1742718640598,-3249.95340702,0.0001,2]
[356578416,1742718640609,-1399.79399091,0.0001,2]
[356578417,1742718640620,-679.26701383,0.0001,2]
[356578418,1742718640639,-3510.52971438,0.0001,2]
[356578419,1742718640649,-2256.50655973,0.0001,2]
[356578420,1742718640660,-1474.35197234,0.0001,2]
[356578421,1742718640671,-1431.37412263,0.0001,2]
[356578422,1742718640681,-3594.43905136,0.0001,2]
[356578423,1742718640727,-1012.04159833,0.0001,2]
[356578424,1742718640738,-702.47844533,0.0001,2]
[356578425,1742718640749,-681.66370307,0.0001,2]
[356578426,1742718640783,-2004.69357214,0.0001,2]
[356578427,1742718640794,-558.93122625,0.0001,2]
[356578428,1742718640805,-969.93441918,0.0001,2]
[356578435,1742718643334,-562.94029799,0.0001,2]
[356578436,1742718643442,-284.74638608,0.0001,2]
[356578437,1742718643454,-835.04991627,0.0001,2]
[356578447,1742718644232,-447.27153168,0.0001,2]
[356578448,1742718644251,-2305.68935329,0.0001,2]
[356578449,1742718644262,-4785.95896218,0.0001,2]
[356578450,1742718644274,-1635.41090626,0.0001,2]
[356578451,1742718644285,-282.22400001,0.0001,2]
[356578452,1742718644296,-386.4901369,0.0001,2]
[356578453,1742718644310,-392.53922624,0.0001,2]
[356578454,1742718644321,-624.711,0.0001,2]
[356578455,1742718644332,-1086.48280957,0.0001,2]
[356578456,1742718644351,-40552.32547131,0.0001,2]
[356578457,1742718644362,-789.9035153,0.0001,2]
[356578458,1742718644373,-512.6900035,0.0001,2]
[356578459,1742718646207,-668.30843146,0.0001,2]
[356578460,1742718646266,-845.70906441,0.0001,2]
[356578461,1742718646277,-432.19494406,0.0001,2]
[356578462,1742718646374,-343.53915486,0.0001,2]
[356578463,1742718646484,-658.63300375,0.0001,2]
[356578464,1742718646497,-336.30616266,0.0001,2]
[356578467,1742718762639,220.35,9.45e-05,2]
[356578473,1742719688707,168.48,0.00031713,38]
[356578477,1742719783703,-150.0,9.999e-05,2]
[356578480,1742719783735,-150.0,9.999e-05,2]
[356578481,1742719783766,-2690.37666012,0.0001,2]
[356578484,1742719783804,-5638.2433201,0.0001,2]
[356578487,1742719802901,1721.45,8.457e-05,2]
[356578489,1742719808492,-5054.7727918,0.0001,2]
[356578491,1742719831370,-708.84060142,0.0001,2]
[356578492,1742719831530,-570.09,0.0001,2]
[356578493,1742719831583,-504.75,0.0001,2]
[356578494,1742719831594,-658.25,0.0001,2]
[356578495,1742719831690,-1495.88546281,0.0001,2]
[356578540,1742719837329,-6341.06870671,0.0001,2]
[356578541,1742719837380,-437.70943335,0.0001,2]
[356578542,1742719837391,-1485.86954185,0.0001,2]
[356578543,1742719837435,-376.0213201,0.0001,2]
[356578544,1742719837489,-1387.62,0.0001,2]
[356578547,1742719837783,-41506.69636553,0.0001,2]
[356578548,1742719837793,-169.61077808,0.0001,2]
[356578549,1742719837803,-2000.0,0.00010348,2]
[356578550,1742719837813,-250.0,0.00010363,2]
[356578551,1742719837825,-310.09,0.00010385,2]
[356578552,1742719837834,-200.0,0.00010406,2]
[356578553,1742719837844,-1000.0,0.00010417,2]
[356578554,1742719837853,-916.26,0.00010418,2]
[356578555,1742719837862,-2000.0,0.00010418,2]
[356578556,1742719837873,-604.05,0.00010422,2]
[356578557,1742719837883,-2103.28,0.00010422,2]
[356578558,1742719837892,-1637.74,0.00010431,2]
[356578559,1742719837902,-5837.81,0.00010496,2]
[356578560,1742719837914,-13284.46,0.00010506,2]
[356578561,1742719837924,-499.99,0.00010506,2]
[356578562,1742719837933,-1406.69,0.00010509,2]
[356578563,1742719837942,-500.0,0.00010522,2]
[356578564,1742719837951,-250.0,0.00010524,2]
[356578565,1742719837960,-1279.64662299,0.00010524,2]
[356578566,1742719837972,-1683.59052486,0.00010524,2]
[356578567,1742719837984,-547.89469076,0.00010524,2]
[356578568,1742719837995,-2343.44816139,0.00010524,2]
[356578569,1742719838005,-288.21180861,0.00010537,2]
[356578570,1742719838016,-11.78819139,0.00010537,2]
[356578571,1742719838025,-231.05,0.00010693,2]
[356578572,1742719838035,-1721.45,0.00010721,2]
[356578573,1742719838044,-267.9351,0.00010851,2]
[356578574,1742719838053,-2.25847222,0.00010851,2]
[356578576,1742719839635,-817.15,0.00010496,2]
[356578577,1742719839646,-150.99,0.00010496,2]
[356578578,1742719839657,-3897.78812778,0.00010851,2]
[356578579,1742719839667,-466.47,0.00010883,2]
[356578580,1742719839677,-466.47,0.00010906,2]
[356578581,1742719839687,-466.47,0.00010928,2]
[356578582,1742719839697,-999.99,0.00010951,2]
[356578583,1742719839707,-9999.99,0.00010951,2]
[356578584,1742719839716,-466.47,0.00010951,2]
[356578585,1742719839726,-466.47,0.00010974,2]
[356578586,1742719839735,-7711.22,0.00010974,2]
[356578587,1742719839744,-466.47,0.00010997,2]
[356578588,1742719839754,-150.0,0.00010999,2]
[356578589,1742719839764,-150.0,0.00010999,2]
[356578590,1742719839775,-255.0,0.00010999,2]
[356578591,1742719839785,-150.0,0.00011,2]
[356578592,1742719839795,-150.0,0.00011013,2]
[356578593,1742719839805,-466.47,0.0001102,2]
[356578594,1742719839816,-1214.04,0.0001104,2]
[356578595,1742719839827,-466.47,0.00011043,2]
[356578596,1742719839837,-466.47,0.00011066,2]
[356578597,1742719839846,-38423.5032,0.00011083,2]
[356578598,1742719839857,-466.47,0.00011089,2]
[356578599,1742719839867,-466.47,0.00011112,2]
[356578600,1742719839877,-466.47,0.00011135,2]
[356578601,1742719839887,-466.47,0.00011157,2]
[356578602,1742719839897,-466.47,0.0001118,2]
[356578603,1742719839908,-2948.13,0.00011183,2]
[356578604,1742719839918,-23900.0,0.00011183,2]
[356578605,1742719839927,-466.47,0.00011203,2]
[356578606,1742719839936,-466.47,0.00011226,2]
[356578607,1742719839946,-466.47,0.00011249,2]
[356578608,1742719839955,-466.47,0.00011272,2]
[356578609,1742719839964,-466.47,0.00011295,2]
[356578610,1742719839973,-466.47,0.00011318,2]
[356578611,1742719839983,-4197.9548,0.00011407,2]
[356578612,1742719839992,-301.32,0.0001143,2]
[356578613,1742719840001,-2751.0,0.00011507,2]
[356578614,1742719840011,-429.65727299,0.0001151,2]
[356578615,1742719840020,-3056.18972512,0.00011664,2]
[356578616,1742719840030,-3056.18972503,0.0001169,2]
[356578617,1742719840039,-3056.18972503,0.00011716,2]
[356578618,1742719840049,-1000.0,0.00011719,2]
[356578620,1742719840058,-3056.18972503,0.00011743,2]
[356578621,1742719840068,-5274.39,0.00011764,2]
[356578622,1742719840078,-3056.18972503,0.00011769,2]
[356578623,1742719840088,-209.3327,0.00011778,2]
[356578624,1742719840097,-1913.6831,0.00011778,2]
[356578625,1742719840106,-3056.18972503,0.00011795,2]